bitfinex/quotes_BTCUSD_20230901
["timestamp","ask_amount","ask_price","bid_price","bid_amount"]
[1693607753268,0.01743612,25813.0,25811.0,0.1]
[1693607753913,0.01743612,25813.0,25811.0,0.122]
[1693607754504,0.01743612,25814.0,25811.0,0.122]
[1693607755261,0.01743612,25814.0,25811.0,0.149]
[1693607755827,0.01743612,25814.0,25811.0,0.14]
[1693607756032,0.01743612,25815.0,25812.0,0.02]
[1693607756207,0.3966,25816.0,25812.0,0.14]
[1693607756208,0.2321,25816.0,25812.0,0.14]
[1693607756407,0.01743612,25817.0,25812.0,0.29483471]
[1693607756610,0.01743612,25817.0,25813.0,0.14]
[1693607756972,0.01743612,25816.0,25813.0,0.14]
[1693607758978,0.01743612,25816.0,25813.0,0.177]
[1693607759183,0.01743612,25816.0,25813.0,0.14]
[1693607759383,0.01743612,25816.0,25813.0,0.177]
[1693607759523,0.01743612,25816.0,25813.0,0.214]
[1693607761265,0.01743612,25816.0,25813.0,0.134]
[1693607762232,0.3926,25820.0,25813.0,0.134]
[1693607762373,0.01743612,25816.0,25814.0,0.15483471]
[1693607762575,0.01743612,25816.0,25813.0,0.134]
[1693607763021,0.01743612,25816.0,25813.0,0.097]
[1693607763224,0.01743612,25816.0,25813.0,0.06]
[1693607763558,0.01743612,25816.0,25814.0,0.037]
[1693607764675,0.01743612,25816.0,25813.0,0.06]
[1693607764877,0.01743612,25816.0,25813.0,0.097]
[1693607765197,0.01743612,25816.0,25813.0,0.134]
[1693607765398,0.01743612,25816.0,25813.0,0.097]
[1693607765578,0.01743612,25817.0,25814.0,0.037]
[1693607765989,0.01743612,25817.0,25813.0,0.097]
[1693607766192,0.01743612,25817.0,25813.0,0.037]
[1693607766395,0.01743612,25817.0,25813.0,0.06]
[1693607766589,0.01743612,25817.0,25813.0,0.097]
[1693607767249,0.01743612,25819.0,25813.0,0.097]
[1693607767404,0.01743612,25819.0,25813.0,0.25183471]
[1693607767609,0.01743612,25817.0,25813.0,0.25183471]
[1693607767838,0.01743612,25817.0,25814.0,0.037]
[1693607768256,0.01743612,25817.0,25813.0,0.097]
[1693607768667,0.17723612,25818.0,25813.0,0.097]
[1693607768877,0.17723612,25818.0,25813.0,0.25183471]
[1693607769170,0.17723612,25818.0,25813.0,0.097]
[1693607769323,0.01743612,25817.0,25814.0,0.037]
[1693607769528,0.01743612,25817.0,25813.0,0.06]
[1693607769770,0.01743612,25817.0,25813.0,0.097]
[1693607770583,0.24983612,25817.0,25813.0,0.097]
[1693607770784,0.24983612,25817.0,25813.0,0.134]
[1693607771009,0.24983612,25817.0,25813.0,0.097]
[1693607771212,0.24983612,25817.0,25813.0,0.06]
[1693607771410,0.24983612,25817.0,25814.0,0.037]
[1693607771656,0.24983612,25817.0,25813.0,0.097]
[1693607771813,0.24983612,25817.0,25813.0,0.134]
[1693607772209,0.24983612,25817.0,25813.0,0.06]
[1693607772394,0.24983612,25817.0,25814.0,0.037]
[1693607773241,0.01743612,25815.0,25814.0,0.037]
[1693607773443,0.01743612,25814.0,25813.0,0.037]
[1693607773642,1.07389722,25814.0,25813.0,0.037]
[1693607773823,0.9856029,25814.0,25813.0,0.037]
[1693607774183,0.9856029,25814.0,25813.0,0.074]
[1693607774780,0.9856029,25814.0,25805.0,1.0456]
[1693607774981,0.01743612,25809.0,25805.0,0.06]
[1693607775309,0.08829432,25808.0,25805.0,0.06]
[1693607776000,0.01743612,25809.0,25805.0,0.06]
[1693607776425,0.01743612,25809.0,25805.0,0.097]
[1693607776628,0.01743612,25809.0,25805.0,0.06]
[1693607776940,0.01743612,25809.0,25805.0,0.097]
[1693607777141,0.01743612,25809.0,25805.0,0.06]
[1693607777347,0.01743612,25809.0,25805.0,0.097]
[1693607777547,0.26578581,25809.0,25805.0,0.097]
[1693607777747,0.26578581,25809.0,25805.0,0.06]
[1693607778064,0.26878581,25809.0,25805.0,0.097]
[1693607778524,0.26878581,25809.0,25805.0,0.134]
[1693607778934,0.02043612,25809.0,25805.0,0.28883471]
[1693607779143,0.003,25809.0,25806.0,0.38708678]
[1693607779317,0.02043612,25809.0,25806.0,0.38708678]
[1693607779919,0.003,25809.0,25808.0,0.08256388]
[1693607780127,0.003,25809.0,25808.0,0.46965066]
[1693607780330,0.41053612,25813.0,25809.0,0.06]
[1693607780511,0.41053612,25813.0,25810.0,0.15483471]
[1693607780512,0.3931,25813.0,25810.0,0.15483471]
[1693607780875,0.41053612,25813.0,25810.0,0.15483471]
[1693607781070,0.41053612,25813.0,25809.0,0.06]
[1693607781385,0.3961,25813.0,25809.0,0.097]
[1693607781772,0.003,25813.0,25812.0,0.04]
[1693607781944,0.003,25813.0,25812.0,0.42708678]
[1693607783229,0.003,25813.0,25812.0,0.43608678]
[1693607784235,0.01743612,25816.0,25812.0,0.43608678]
[1693607784432,0.01743612,25816.0,25812.0,0.39608678]
[1693607784800,0.01743612,25816.0,25812.0,0.44308678]
[1693607785198,0.01743612,25816.0,25812.0,0.43608678]
[1693607785498,0.03643612,25816.0,25812.0,0.42808678]
[1693607785841,0.03943612,25816.0,25812.0,0.42808678]
[1693607787287,0.03943612,25816.0,25815.0,0.1201]
[1693607788185,0.01743612,25816.0,25815.0,0.1201]
[1693607788524,0.05743612,25816.0,25815.0,0.1261]
[1693607793435,0.23973612,25819.0,25815.0,0.1261]
[1693607793663,0.23973612,25819.0,25815.0,0.28093471]
[1693607793863,0.23973612,25819.0,25815.0,0.1261]
[1693607794276,0.23973612,25819.0,25815.0,0.1231]
[1693607794661,0.24273612,25819.0,25815.0,0.1261]
[1693607795012,0.24273612,25819.0,25815.0,0.1231]
[1693607795212,0.24273612,25819.0,25815.0,0.1261]
[1693607795783,0.24273612,25819.0,25815.0,0.1231]
[1693607795988,0.24273612,25819.0,25815.0,0.1601]
[1693607796219,0.24273612,25819.0,25815.0,0.1231]
[1693607796497,0.23973612,25819.0,25815.0,0.1571]
[1693607796696,0.24273612,25819.0,25815.0,0.1571]
[1693607797098,0.24273612,25819.0,25815.0,0.037]
[1693607797305,0.23973612,25819.0,25815.0,0.037]
[1693607797505,0.23973612,25819.0,25815.0,0.074]
[1693607799313,0.23973612,25819.0,25816.0,0.1201]
[1693607800500,0.23973612,25819.0,25816.0,0.1581]
[1693607801054,0.23973612,25819.0,25816.0,0.1941]
[1693607802131,0.23973612,25819.0,25816.0,0.074]
[1693607823348,0.53255067,25819.0,25816.0,0.074]
[1693607823510,0.29196217,25818.0,25816.0,0.074]
[1693607824337,0.29196217,25818.0,25815.0,0.1201]
[1693607824538,0.29196217,25818.0,25816.0,0.036]
[1693607825620,0.29196217,25818.0,25816.0,0.074]
[1693607827219,0.79914895,25818.0,25816.0,0.074]
[1693607830498,0.67904895,25818.0,25816.0,0.074]
[1693607831321,0.28548171,25817.0,25816.0,0.074]
[1693607832144,0.28548171,25817.0,25816.0,0.036]
[1693607832343,0.28548171,25817.0,25816.0,0.038]
[1693607832668,0.28548171,25817.0,25816.0,0.074]
[1693607835038,0.38708678,25818.0,25816.0,0.074]
[1693607835954,0.38708678,25818.0,25816.0,0.036]
[1693607836269,0.38708678,25818.0,25816.0,0.074]
[1693607837041,0.38708678,25818.0,25816.0,0.038]
[1693607837385,0.38708678,25818.0,25816.0,0.074]
[1693607875820,0.157,25819.0,25816.0,0.074]
[1693607876580,0.157,25819.0,25816.0,0.036]
[1693607877013,0.157,25819.0,25813.0,0.471]
[1693607877211,0.24529432,25819.0,25816.0,0.036]
[1693607877412,0.1201,25820.0,25816.0,0.036]
[1693607877630,0.50718678,25820.0,25816.0,0.036]
[1693607877823,0.67078678,25820.0,25816.0,0.036]
[1693607878400,0.67078678,25820.0,25816.0,0.074]
[1693607878605,0.22917182,25819.0,25816.0,0.038]
[1693607878762,0.22917182,25819.0,25813.0,0.471]
[1693607878964,0.08829432,25818.0,25813.0,0.471]
[1693607879161,0.08829432,25818.0,25816.0,0.038]
[1693607879365,0.22917182,25819.0,25816.0,0.038]
[1693607879565,0.22917182,25819.0,25813.0,0.2784]
[1693607879773,0.31746614,25819.0,25816.0,0.036]
[1693607879969,0.22917182,25819.0,25813.0,0.47023471]
[1693607880178,0.31746614,25819.0,25813.0,0.47023471]
[1693607880380,0.31746614,25819.0,25816.0,0.036]
[1693607880581,0.31746614,25819.0,25813.0,0.47023471]
[1693607880582,0.22917182,25819.0,25813.0,0.47023471]
[1693607880843,0.31746614,25819.0,25813.0,0.47023471]
[1693607881069,0.31746614,25819.0,25816.0,0.036]
[1693607881248,0.22917182,25819.0,25816.0,0.036]
[1693607881450,0.22917182,25819.0,25816.0,0.074]
[1693607881585,0.25647992,25818.0,25816.0,0.074]
[1693607881791,0.25647992,25818.0,25816.0,0.038]
[1693607882527,0.25647992,25818.0,25813.0,0.43323471]
[1693607882751,0.34477424,25818.0,25813.0,0.2784]
[1693607882934,0.34477424,25818.0,25816.0,0.038]
[1693607883255,0.25647992,25818.0,25816.0,0.038]
[1693607883552,0.25647992,25818.0,25816.0,0.074]
[1693607884252,0.25647992,25818.0,25816.0,0.036]
[1693607885357,0.25647992,25818.0,25816.0,0.074]
[1693607888731,0.67078678,25820.0,25816.0,0.074]
[1693607889831,0.67078678,25820.0,25816.0,0.038]
[1693607890206,0.67078678,25820.0,25816.0,0.074]
[1693607890622,0.67078678,25820.0,25816.0,0.036]
[1693607891025,0.67078678,25820.0,25816.0,0.074]
[1693607891629,0.73209519,25824.0,25816.0,0.074]
[1693607891630,0.580754,25829.0,25819.0,0.1201]
[1693607891888,0.580754,25829.0,25817.0,0.58192149]
[1693607891889,0.2121,25827.0,25822.0,0.1201]
[1693607892060,0.38708678,25827.0,25824.0,0.1201]
[1693607892283,0.38708678,25827.0,25823.0,0.15483471]
[1693607892284,0.42410429,25830.0,25825.0,0.15483471]
[1693607892463,0.38708678,25829.0,25825.0,0.15483471]
[1693607893081,0.54318678,25829.0,25825.0,0.15483471]
[1693607893433,0.54318678,25829.0,25824.0,0.037]
[1693607893590,0.16091889,25828.0,25825.0,0.14240994]
[1693607893763,0.16091889,25828.0,25825.0,0.17840994]
[1693607894577,0.66810567,25828.0,25825.0,0.036]
[1693607895391,0.66810567,25828.0,25825.0,0.074]
[1693607895975,0.66810567,25828.0,25825.0,0.038]
[1693607896225,0.54891415,25827.0,25825.0,0.038]
[1693607896424,0.54891415,25827.0,25825.0,0.074]
[1693607897104,0.54891415,25827.0,25825.0,0.038]
[1693607897301,0.54891415,25827.0,25821.0,0.1201]
[1693607897507,0.08829432,25826.0,25825.0,0.074]
[1693607897708,0.1614,25826.0,25825.0,0.074]
[1693607898246,0.74831415,25827.0,25825.0,0.036]
[1693607898674,0.54891415,25827.0,25825.0,0.036]
[1693607898832,0.17369006,25826.0,25825.0,0.036]
[1693607899147,0.56077684,25826.0,25825.0,0.036]
[1693607899346,0.56077684,25826.0,25825.0,0.038]
[1693607899692,0.68087684,25826.0,25825.0,0.038]
[1693607900344,0.68087684,25826.0,25825.0,0.074]
[1693607900704,0.68087684,25826.0,25825.0,0.036]
[1693607900905,0.68087684,25826.0,25825.0,0.074]
[1693607904226,0.68087684,25826.0,25825.0,0.0721]
[1693607906373,1.08799678,25826.0,25825.0,0.0721]
[1693607908270,2.75891678,25826.0,25825.0,0.0721]
[1693607908444,3.25633986,25826.0,25825.0,0.0721]
[1693607908670,3.26725986,25826.0,25825.0,0.0721]
[1693607908961,3.26737986,25826.0,25825.0,0.0721]
[1693607909128,3.26731986,25826.0,25825.0,0.0341]
[1693607909329,1.161776,25823.0,25814.0,0.3828]
[1693607909544,0.1201,25821.0,25814.0,0.04]
[1693607909739,0.08829432,25820.0,25814.0,0.04]
[1693607910614,0.24459432,25820.0,25814.0,0.077]
[1693607910814,0.24459432,25820.0,25814.0,0.23183471]
[1693607911004,0.24459432,25820.0,25814.0,0.19483471]
[1693607911214,0.24459432,25820.0,25814.0,0.23183471]
[1693607911419,0.24459432,25820.0,25814.0,0.26883471]
[1693607911969,0.13006738,25819.0,25815.0,0.0442657]
[1693607913348,0.13006738,25819.0,25815.0,0.0812657]
[1693607914112,0.13006738,25819.0,25815.0,0.1182657]
[1693607914910,0.13006738,25819.0,25816.0,0.10705317]
[1693607916626,0.38708678,25821.0,25816.0,0.14405317]
[1693607916802,1.161779,25823.0,25816.0,0.41898788]
[1693607916803,0.282,25823.0,25816.0,0.41898788]
[1693607917097,0.282,25823.0,25817.0,0.15483471]
[1693607917098,0.38708678,25822.0,25817.0,0.15483471]
[1693607917434,0.38708678,25822.0,25818.0,0.15327711]
[1693607918502,0.38708678,25822.0,25818.0,0.19027711]
[1693607918927,0.38708678,25822.0,25818.0,0.31037711]
[1693607919876,0.1995,25824.0,25819.0,0.15804014]
[1693607919982,0.67129489,25827.0,25820.0,0.27493471]
[1693607919983,0.05050189,25827.0,25820.0,0.27493471]
[1693607920187,0.38708678,25826.0,25820.0,0.27493471]
[1693607920450,0.38708678,25826.0,25820.0,0.27472959]
[1693607920847,0.4753811,25826.0,25820.0,0.27472959]
[1693607921260,0.4753811,25826.0,25820.0,0.27572959]
[1693607921636,0.4753811,25826.0,25820.0,0.27472959]
[1693607921842,0.6343811,25826.0,25820.0,0.27472959]
[1693607922707,0.78762742,25826.0,25821.0,0.12058244]
[1693607922847,0.6993331,25826.0,25821.0,0.27541715]
[1693607923051,0.6973331,25826.0,25821.0,0.27541715]
[1693607923253,0.16497865,25825.0,25821.0,0.27541715]
[1693607923502,0.55206543,25825.0,25821.0,0.12058244]
[1693607924337,0.55206543,25825.0,25821.0,0.12258244]
[1693607924672,0.55206543,25825.0,25821.0,0.12058244]
[1693607924879,0.55206543,25825.0,25821.0,0.13458244]
[1693607925754,0.55206543,25825.0,25822.0,0.06970339]
[1693607926851,0.55206543,25825.0,25822.0,0.07170339]
[1693607928204,0.55406543,25825.0,25822.0,0.07170339]
[1693607928432,0.55406543,25825.0,25823.0,0.10309261]
[1693607930115,0.55206543,25825.0,25823.0,0.10309261]
[1693607930478,0.38708678,25825.0,25823.0,0.10309261]
[1693607930819,0.38708678,25825.0,25823.0,0.10509261]
[1693607931469,0.39108678,25825.0,25823.0,0.10509261]
[1693607931675,0.153,25826.0,25823.0,0.10509261]
[1693607931980,0.54008678,25826.0,25823.0,0.10509261]
[1693607932188,0.54008678,25826.0,25823.0,0.10309261]
[1693607932387,0.54008678,25826.0,25823.0,0.11309261]
[1693607932567,0.54008678,25826.0,25823.0,0.10309261]
[1693607932983,0.54208678,25826.0,25823.0,0.11709261]
[1693607933629,0.54208678,25826.0,25823.0,0.10309261]
[1693607933929,0.002,25826.0,25823.0,0.22519261]
[1693607934791,0.36189119,25829.0,25823.0,0.22519261]
[1693607935041,0.38708678,25828.0,25824.0,0.15483471]
[1693607935233,0.38708678,25828.0,25823.0,0.41602732]
[1693607935431,0.38708678,25828.0,25824.0,0.08015587]
[1693607935569,0.70626611,25828.0,25824.0,0.08015587]
[1693607935774,0.002,25826.0,25824.0,0.08015587]
[1693607936022,0.70626611,25828.0,25824.0,0.08015587]
[1693607936170,0.70926611,25828.0,25824.0,0.08215587]
[1693607936613,0.70826611,25828.0,25824.0,0.08215587]
[1693607936932,0.70826611,25828.0,25824.0,0.10515587]
[1693607937181,0.70626611,25828.0,25824.0,0.10315587]
[1693607937365,0.70626611,25828.0,25824.0,0.14115587]
[1693607938121,0.70626611,25828.0,25824.0,0.11815587]
[1693607938340,0.70626611,25828.0,25824.0,0.15415587]
[1693607938964,0.70626611,25828.0,25825.0,0.09279278]
[1693607940286,0.70626611,25828.0,25825.0,0.11979278]
[1693607941482,0.70626611,25828.0,25825.0,0.14279278]
[1693607941683,0.18046962,25827.0,25825.0,0.05]
[1693607942714,0.18046962,25827.0,25823.0,0.1201]
[1693607942978,0.18046962,25827.0,25825.0,0.027]
[1693607943148,0.18046962,25827.0,25825.0,0.05]
[1693607943522,0.18046962,25827.0,25825.0,0.023]
[1693607946147,0.18046962,25827.0,25825.0,0.18843034]
[1693607960289,0.18046962,25827.0,25825.0,0.05]
[1693607967434,0.54308678,25828.0,25825.0,0.1896195]
[1693607968267,0.54308678,25828.0,25826.0,0.05362294]
[1693607970193,0.54308678,25828.0,25826.0,0.06362294]
[1693607970428,0.54308678,25828.0,25826.0,0.07762294]
[1693607974293,0.54308678,25828.0,25826.0,0.024]
[1693607975281,0.17511146,25827.0,25826.0,0.024]
[1693607975875,0.17011146,25827.0,25826.0,0.024]
[1693607976436,0.17011146,25827.0,25826.0,0.014]
[1693607976646,0.17011146,25827.0,25826.0,0.024]
[1693607976843,0.17011146,25827.0,25826.0,0.01]
[1693607977042,0.17011146,25827.0,25826.0,0.024]
[1693607982368,0.54308678,25828.0,25826.0,0.024]
[1693607982773,0.54327742,25828.0,25826.0,0.024]
[1693607983379,0.54327742,25828.0,25826.0,0.01]
[1693607983603,0.54327742,25828.0,25823.0,0.1568]
[1693607983834,0.63157174,25828.0,25826.0,0.01]
[1693607984033,0.54327742,25828.0,25826.0,0.024]
[1693607984532,0.54327742,25828.0,25826.0,0.01]
[1693607986007,0.54327742,25828.0,25823.0,0.1525]
[1693607986226,0.63157174,25828.0,25823.0,0.037]
[1693607986386,0.63157174,25828.0,25826.0,0.014]
[1693607986710,0.54327742,25828.0,25826.0,0.014]
[1693607986869,0.54327742,25828.0,25826.0,0.01]
[1693607987067,0.54327742,25828.0,25823.0,0.037]
[1693607987427,0.63157174,25828.0,25823.0,0.074]
[1693607987652,0.63157174,25828.0,25823.0,0.037]
[1693607987850,0.63157174,25828.0,25826.0,0.014]
[1693607988003,0.54327742,25828.0,25826.0,0.014]
[1693607989363,0.54327742,25828.0,25826.0,0.024]
[1693607989571,0.54327742,25828.0,25826.0,0.01]
[1693607989868,0.00019064,25828.0,25827.0,0.03590918]
[1693607991032,0.00219064,25828.0,25827.0,0.03590918]
[1693607991506,0.00219064,25828.0,25827.0,0.03790918]
[1693607997132,0.00219064,25828.0,25827.0,0.002]
[1693607998399,0.00219064,25828.0,25827.0,0.14815711]
[1693607999379,0.00219064,25828.0,25827.0,0.002]
[1693607999824,0.00219064,25828.0,25827.0,0.14802849]
[1693608000036,0.00219064,25828.0,25827.0,0.002]
[1693608000451,0.00219064,25828.0,25827.0,0.16258195]
[1693608001286,0.00219064,25828.0,25827.0,0.002]
[1693608011771,0.00219064,25828.0,25827.0,0.15690877]
[1693608029809,0.00219064,25828.0,25827.0,0.002]
[1693608029987,0.12745978,25828.0,25827.0,0.002]
[1693608030780,0.38927742,25828.0,25827.0,0.002]
[1693608030989,1.09014242,25828.0,25827.0,0.002]
[1693608032442,1.24088561,25828.0,25827.0,0.002]
[1693608033734,1.24624242,25828.0,25827.0,0.002]
[1693608037450,1.82700742,25828.0,25827.0,0.002]
[1693608039599,1.92700742,25828.0,25827.0,0.002]
[1693608039815,2.22700742,25828.0,25827.0,0.002]
[1693608040721,2.8395208,25828.0,25827.0,0.002]
[1693608041811,2.8195208,25828.0,25827.0,0.002]
[1693608042073,2.8395208,25828.0,25827.0,0.002]
[1693608042734,2.8195208,25828.0,25827.0,0.002]
[1693608046269,2.83110222,25828.0,25827.0,0.002]
[1693608055578,1.08880722,25828.0,25827.0,0.002]
[1693608055978,2.25033722,25828.0,25827.0,0.002]
[1693608056443,2.81110222,25828.0,25827.0,0.002]
[1693608057580,2.77110222,25828.0,25827.0,0.002]
[1693608076962,3.31880222,25828.0,25827.0,0.002]
[1693608077174,3.6214253,25828.0,25827.0,0.002]
[1693608077392,3.6164453,25828.0,25827.0,0.002]
[1693608077595,3.7671653,25828.0,25827.0,0.002]
[1693608077959,3.7677653,25828.0,25827.0,0.002]
[1693608078159,0.1,25823.0,25817.0,0.9856]
[1693608078369,0.1201,25821.0,25813.0,1.1057]
[1693608078577,0.08829432,25820.0,25814.0,0.1644]
[1693608079009,0.08829432,25820.0,25815.0,0.00037806]
[1693608080448,0.08829432,25820.0,25816.0,0.16167273]
[1693608080654,1.08811378,25821.0,25816.0,0.16167273]
[1693608080968,1.08811378,25821.0,25817.0,0.0003757]
[1693608081172,0.13061103,25819.0,25817.0,0.0003757]
[1693608081857,0.3,25823.0,25817.0,0.15483471]
[1693608082029,0.1201,25827.0,25820.0,0.1201]
[1693608082228,0.50718678,25827.0,25821.0,0.15483471]
[1693608082416,0.50718678,25827.0,25821.0,0.27493471]
[1693608082417,0.38708678,25827.0,25821.0,0.27493471]
[1693608083010,0.38708678,25827.0,25822.0,0.11787499]
[1693608083214,0.38808678,25827.0,25822.0,0.2727097]
[1693608084638,0.38708678,25827.0,25822.0,0.2727097]
[1693608084837,0.38708678,25827.0,25822.0,0.2987097]
[1693608085102,0.38708678,25827.0,25822.0,0.14387499]
[1693608085466,0.38708678,25827.0,25823.0,0.07427697]
[1693608085840,0.54486737,25827.0,25823.0,0.07427697]
[1693608086040,0.15394999,25826.0,25823.0,0.07427697]
[1693608086444,0.15394999,25826.0,25823.0,0.08327697]
[1693608086647,0.15394999,25826.0,25823.0,0.09627697]
[1693608087382,0.15394999,25826.0,25823.0,0.10927697]
[1693608088112,0.15394999,25826.0,25823.0,0.10027697]
[1693608088466,0.15394999,25826.0,25823.0,0.12227697]
[1693608090047,0.15394999,25826.0,25824.0,0.10834276]
[1693608091224,0.15394999,25826.0,25824.0,0.12134276]
[1693608091676,0.15394999,25826.0,25824.0,0.13034276]
[1693608093673,0.38708678,25827.0,25824.0,0.13034276]
[1693608094085,0.12029064,25828.0,25825.0,0.07731005]
[1693608094278,0.12029064,25828.0,25825.0,0.23214476]
[1693608094279,0.3,25827.0,25825.0,0.23214476]
[1693608094433,0.3,25827.0,25825.0,0.07731005]
[1693608095069,0.301,25827.0,25825.0,0.07731005]
[1693608095268,0.3,25827.0,25825.0,0.07731005]
[1693608095775,0.301,25827.0,25825.0,0.07731005]
[1693608097313,0.001,25827.0,25825.0,0.07731005]
[1693608100772,0.14617107,25827.0,25825.0,0.07731005]
[1693608102322,0.14617107,25827.0,25822.0,0.4683]
[1693608102532,0.23446539,25827.0,25822.0,0.2741]
[1693608102735,0.23446539,25827.0,25822.0,0.1201]
[1693608102936,0.00018894,25826.0,25822.0,0.1201]
[1693608103573,0.00018894,25826.0,25822.0,0.1461]
[1693608104054,0.00018894,25826.0,25822.0,0.1201]
[1693608104643,0.00018894,25826.0,25822.0,0.1421]
[1693608105052,0.00018894,25826.0,25822.0,0.1201]
[1693608105289,0.00018894,25826.0,25822.0,0.1931]
[1693608105901,0.00018894,25826.0,25823.0,0.1285186]
[1693608107024,0.00018894,25826.0,25823.0,0.1545186]
[1693608107317,0.00018894,25826.0,25823.0,0.1765186]
[1693608109032,0.00018894,25826.0,25824.0,0.06787358]
[1693608110362,0.00018894,25826.0,25824.0,0.08087358]
[1693608110520,0.00018894,25826.0,25824.0,0.08987358]
[1693608111904,0.00018894,25826.0,25825.0,0.11084111]
[1693608113182,0.00018894,25826.0,25825.0,0.11184111]
[1693608113403,0.00118894,25826.0,25825.0,0.11184111]
[1693608114149,0.00018894,25826.0,25825.0,0.11184111]
[1693608114549,0.00018894,25826.0,25825.0,0.12084111]
[1693608114783,0.00018894,25826.0,25825.0,0.11984111]
[1693608115007,0.00018894,25826.0,25825.0,0.13284111]
[1693608115551,0.00018894,25826.0,25825.0,0.11984111]
[1693608115755,0.00018894,25826.0,25825.0,0.13284111]
[1693608116714,0.00018894,25826.0,25825.0,0.12384111]
[1693608117210,0.00018894,25826.0,25825.0,0.13284111]
[1693608165408,0.00018894,25826.0,25825.0,0.022]
[1693608171200,0.17319184,25826.0,25825.0,0.022]
[1693608175920,0.56027862,25826.0,25825.0,0.022]
[1693608176322,0.56027862,25826.0,25821.0,0.1]
[1693608176527,1.38378294,25826.0,25825.0,0.009]
[1693608176723,1.29548862,25826.0,25825.0,0.013]
[1693608177273,1.14208862,25826.0,25821.0,0.1]
[1693608177595,1.96559294,25826.0,25821.0,0.037]
[1693608177799,0.1201,25824.0,25821.0,0.037]
[1693608178031,0.78924932,25824.0,25819.0,0.08]
[1693608178230,0.08829432,25823.0,25819.0,0.08]
[1693608178641,0.08829432,25823.0,25818.0,1.0056]
[1693608178642,0.18126866,25823.0,25818.0,1.15857434]
[1693608179064,0.13340445,25822.0,25818.0,0.17297434]
[1693608179331,0.13340445,25822.0,25821.0,0.037]
[1693608179539,0.13340445,25822.0,25818.0,0.08]
[1693608179745,0.13340445,25822.0,25821.0,0.037]
[1693608180357,0.13340445,25822.0,25819.0,0.13369616]
[1693608180562,0.13340445,25822.0,25821.0,0.037]
[1693608181357,0.13340445,25822.0,25818.0,0.20997434]
[1693608181561,0.22169877,25822.0,25818.0,0.20997434]
[1693608181758,0.13340445,25822.0,25818.0,0.17297434]
[1693608182161,0.13340445,25822.0,25821.0,0.037]
[1693608182379,0.13340445,25822.0,25818.0,0.17297434]
[1693608182565,0.13340445,25822.0,25819.0,0.037]
[1693608183155,0.13340445,25822.0,25818.0,0.20997434]
[1693608183357,0.13340445,25822.0,25821.0,0.037]
[1693608183735,0.13340445,25822.0,25819.0,0.037]
[1693608184077,0.13340445,25822.0,25819.0,0.23184778]
[1693608184901,0.13340445,25822.0,25819.0,0.19484778]
[1693608185763,0.13340445,25822.0,25819.0,0.23184778]
[1693608187034,0.13340445,25822.0,25820.0,0.04052215]
[1693608188903,0.13340445,25822.0,25820.0,0.07752215]
[1693608189100,0.13340445,25822.0,25820.0,0.11452215]
[1693608194121,0.1201,25824.0,25820.0,0.26935686]
[1693608194341,0.25486328,25826.0,25821.0,0.14646767]
[1693608194546,0.09316328,25826.0,25821.0,0.27493471]
[1693608194723,0.00018894,25826.0,25821.0,0.27493471]
[1693608195549,0.00018894,25826.0,25821.0,0.39625399]
[1693608195928,0.00018894,25826.0,25821.0,0.43325399]
[1693608196128,0.00018894,25826.0,25821.0,0.27841928]
[1693608196359,0.00018894,25826.0,25821.0,0.31541928]
[1693608196536,0.24242726,25826.0,25821.0,0.31541928]
[1693608196934,0.00018894,25826.0,25821.0,0.31541928]
[1693608197141,0.00018894,25826.0,25821.0,0.1941]
[1693608197335,0.00018894,25826.0,25822.0,0.11854296]
[1693608198417,0.00018894,25826.0,25822.0,0.15654296]
[1693608198960,0.00018894,25826.0,25822.0,0.19154296]
[1693608200742,0.00018894,25826.0,25823.0,0.07788171]
[1693608201883,0.00018894,25826.0,25823.0,0.10388171]
[1693608202887,0.00018894,25826.0,25823.0,0.12588171]
[1693608203807,0.00018894,25826.0,25824.0,0.10803388]
[1693608205012,0.00018894,25826.0,25824.0,0.13003388]
[1693608214166,0.58100294,25826.0,25824.0,0.13003388]
[1693608214361,0.72444976,25826.0,25824.0,0.13003388]
[1693608215560,0.72444976,25826.0,25824.0,0.16090075]
[1693608220279,0.72444976,25826.0,25824.0,0.05286687]
[1693608220504,0.72444976,25826.0,25824.0,0.022]
[1693608220880,0.13918706,25825.0,25824.0,0.022]
[1693608221693,0.13918706,25825.0,25824.0,0.013]
[1693608222016,0.13918706,25825.0,25824.0,0.022]
[1693608222620,0.13918706,25825.0,25824.0,0.009]
[1693608223014,0.13918706,25825.0,25824.0,0.022]
[1693608228585,0.38142245,25825.0,25824.0,0.022]
[1693608231971,0.13918706,25825.0,25824.0,0.022]
[1693608241273,0.13918706,25825.0,25824.0,0.017]
[1693608255014,0.23207221,25825.0,25824.0,0.017]
[1693608257718,0.12028894,25826.0,25824.0,0.017]
[1693608257927,0.00018894,25826.0,25824.0,0.28471986]
[1693608258102,0.00018894,25826.0,25824.0,0.78605671]
[1693608258305,0.00018894,25826.0,25824.0,0.75884186]
[1693608258726,0.00018894,25826.0,25824.0,0.66595671]
[1693608259637,0.00018894,25826.0,25824.0,0.65295671]
[1693608259834,0.00018894,25826.0,25825.0,0.06043205]
[1693608260999,0.00018894,25826.0,25825.0,0.06143205]
[1693608261201,0.00418894,25826.0,25825.0,0.06143205]
[1693608262646,0.00418894,25826.0,25825.0,0.06043205]
[1693608262860,0.00018894,25826.0,25825.0,0.08643205]
[1693608263240,0.00018894,25826.0,25825.0,0.08143205]
[1693608263441,0.00018894,25826.0,25825.0,0.06043205]
[1693608263594,0.00018894,25826.0,25825.0,0.08643205]
[1693608263801,0.00018894,25826.0,25825.0,0.10743205]
[1693608264434,0.12028894,25826.0,25825.0,0.047]
[1693608264642,0.2922669,25826.0,25825.0,0.047]
[1693608264788,0.50737572,25826.0,25825.0,0.047]
[1693608264994,1.22751345,25826.0,25825.0,0.047]
[1693608265209,1.41328376,25826.0,25825.0,0.047]
[1693608265419,1.58430787,25826.0,25825.0,0.047]
[1693608265830,1.39853756,25826.0,25825.0,0.047]
[1693608266313,1.22751345,25826.0,25825.0,0.047]
[1693608266513,2.38913345,25826.0,25825.0,0.047]
[1693608266719,2.55254995,25826.0,25825.0,0.047]